bitfinex/quotes_BTCUSD_20241128
["timestamp","ask_amount","ask_price","bid_price","bid_amount"]
[1732802285227,0.0008622,95824.0,95823.0,0.10484521]
[1732802285413,0.0008622,95824.0,95823.0,0.19750032]
[1732802285662,0.0008622,95824.0,95823.0,0.19550032]
[1732802285916,0.0008622,95824.0,95823.0,0.30285932]
[1732802286409,0.0008622,95824.0,95823.0,0.21020421]
[1732802286628,0.0008622,95824.0,95823.0,0.21720421]
[1732802286847,0.0008622,95824.0,95823.0,0.01]
[1732802287080,0.1052192,95824.0,95823.0,0.01]
[1732802287292,0.0008622,95824.0,95823.0,0.01652553]
[1732802287505,0.0008622,95824.0,95823.0,0.12088453]
[1732802288003,0.0008622,95824.0,95823.0,0.11788453]
[1732802288210,0.0008622,95824.0,95823.0,0.22272974]
[1732802288427,0.0008622,95824.0,95823.0,0.38747939]
[1732802288886,0.0008622,95824.0,95823.0,0.39047939]
[1732802289100,0.0008622,95824.0,95823.0,0.39891991]
[1732802289320,0.0008622,95824.0,95823.0,0.30627026]
[1732802289531,0.0008622,95824.0,95823.0,0.31327026]
[1732802291531,0.0008622,95824.0,95823.0,0.29630421]
[1732802291772,0.0008622,95824.0,95823.0,0.31327026]
[1732802291995,0.0008622,95824.0,95823.0,0.35857026]
[1732802292227,0.0008622,95824.0,95823.0,0.44076592]
[1732802292467,0.0008622,95824.0,95823.0,0.44074692]
[1732802293146,0.0008622,95824.0,95823.0,0.43374692]
[1732802293626,0.0008622,95824.0,95823.0,0.43974692]
[1732802293834,0.0008622,95824.0,95823.0,0.44574692]
[1732802294297,0.0008622,95824.0,95823.0,0.40044692]
[1732802294542,0.0009122,95824.0,95823.0,0.30182961]
[1732802294783,0.0009122,95824.0,95823.0,0.30782961]
[1732802295040,0.1052692,95824.0,95823.0,0.0215254]
[1732802295278,0.1052692,95824.0,95823.0,0.0125254]
[1732802295511,0.1052692,95824.0,95823.0,0.006]
[1732802295733,0.1052692,95824.0,95823.0,0.015]
[1732802296460,0.1052692,95824.0,95823.0,0.006]
[1732802296713,0.1052692,95824.0,95823.0,0.009]
[1732802296913,0.0009122,95824.0,95822.0,0.09261731]
[1732802297125,0.104362,95820.0,95819.0,0.09261731]
[1732802297368,0.104362,95820.0,95819.0,0.09914338]
[1732802297573,0.104362,95820.0,95819.0,0.14548053]
[1732802297791,0.104362,95820.0,95819.0,0.09908326]
[1732802298483,0.2096292,95824.0,95819.0,0.00652607]
[1732802298701,0.0009122,95824.0,95820.0,0.00652607]
[1732802298936,0.1052702,95824.0,95819.0,0.003]
[1732802299149,0.0009122,95824.0,95823.0,0.004]
[1732802299412,0.0009122,95824.0,95823.0,0.11088507]
[1732802299654,0.0009122,95824.0,95823.0,0.22601835]
[1732802299890,0.0009122,95824.0,95823.0,0.22417132]
[1732802300337,0.0009122,95824.0,95823.0,0.23017132]
[1732802300569,0.0009122,95824.0,95823.0,0.22417132]
[1732802301399,0.0009122,95824.0,95823.0,0.23117132]
[1732802301891,0.0009122,95824.0,95823.0,0.20720421]
[1732802302116,0.0009122,95824.0,95823.0,0.23376712]
[1732802302347,0.0009122,95824.0,95823.0,0.23192022]
[1732802302569,0.0009122,95824.0,95823.0,0.22292022]
[1732802303516,0.0009122,95824.0,95823.0,0.3304231]
[1732802303753,0.0009122,95824.0,95823.0,0.23792022]
[1732802303989,0.0009122,95824.0,95823.0,0.4509231]
[1732802304219,0.0009122,95824.0,95823.0,0.35842022]
[1732802304475,0.0009122,95824.0,95823.0,0.35242022]
[1732802304920,0.0009122,95824.0,95823.0,0.44319558]
[1732802305145,0.0009122,95824.0,95823.0,0.45019558]
[1732802305359,0.0009122,95824.0,95823.0,0.31142022]
[1732802305817,0.0009122,95824.0,95823.0,0.32042022]
[1732802306040,0.0009122,95824.0,95823.0,0.31141983]
[1732802306508,0.0009122,95824.0,95823.0,0.32041983]
[1732802306725,0.0009122,95824.0,95823.0,0.31341983]
[1732802306945,0.0009122,95824.0,95823.0,0.32041983]
[1732802307183,0.0009122,95824.0,95823.0,0.31141983]
[1732802307404,0.0009122,95824.0,95823.0,0.30441983]
[1732802307709,0.0009122,95824.0,95823.0,0.45214739]
[1732802307943,0.0009122,95824.0,95823.0,0.80051269]
[1732802308612,0.0009122,95824.0,95823.0,0.80051233]
[1732802309291,0.0009122,95824.0,95823.0,0.45914703]
[1732802309517,0.0009122,95824.0,95823.0,0.711597]
[1732802309743,1.4e-06,95826.0,95825.0,0.254356]
[1732802309966,1.4e-06,95826.0,95825.0,0.45406572]
[1732802310195,1.4e-06,95826.0,95825.0,0.79534325]
[1732802310420,1.4e-06,95826.0,95825.0,0.79519852]
[1732802311380,1.4e-06,95826.0,95825.0,0.80319852]
[1732802312075,1.4e-06,95826.0,95825.0,0.80319633]
[1732802312305,1.4e-06,95826.0,95825.0,0.81219633]
[1732802315333,1.4e-06,95826.0,95825.0,0.81219616]
[1732802318857,1.4e-06,95826.0,95825.0,0.81219605]
[1732802319313,1.4e-06,95826.0,95825.0,0.82273708]
[1732802319768,0.0009225,95832.0,95830.0,0.104351]
[1732802319995,0.0009225,95832.0,95830.0,0.3760049]
[1732802320216,0.0009225,95832.0,95830.0,0.71529105]
[1732802320721,0.0009225,95832.0,95830.0,0.80309105]
[1732802320940,0.0009225,95832.0,95830.0,0.85169105]
[1732802321173,0.0009225,95832.0,95830.0,0.84172901]
[1732802321400,0.022,95872.0,95835.0,0.264346]
[1732802321618,0.022,95872.0,95835.0,0.44499121]
[1732802321827,0.022,95872.0,95835.0,0.78612401]
[1732802322326,0.208613,95871.0,95835.0,0.7965612]
[1732802322543,0.208613,95871.0,95835.0,0.80308444]
[1732802322544,0.104308,95870.0,95835.0,0.80308444]
[1732802322775,0.104308,95870.0,95835.0,0.80408444]
[1732802323424,0.10431,95868.0,95835.0,0.80408444]
[1732802323638,0.208613,95871.0,95835.0,0.80508444]
[1732802323852,0.105009,95869.0,95835.0,0.80508444]
[1732802324070,0.10431,95868.0,95835.0,0.81550824]
[1732802324292,0.0229124,95836.0,95835.0,0.81550824]
[1732802324545,0.0169124,95836.0,95835.0,0.81550824]
[1732802324760,0.0169124,95836.0,95835.0,0.80550824]
[1732802328388,0.0169124,95836.0,95835.0,0.81855502]
[1732802329105,0.0169124,95836.0,95835.0,0.81816403]
[1732802329328,0.208626,95865.0,95847.0,0.104332]
[1732802329571,0.104318,95861.0,95847.0,0.37564415]
[1732802330036,0.104316,95862.0,95847.0,0.37564415]
[1732802330273,0.104316,95862.0,95847.0,0.35607413]
[1732802330509,0.104316,95862.0,95847.0,0.37564407]
[1732802330739,0.208626,95865.0,95847.0,0.38364407]
[1732802330968,0.208626,95865.0,95847.0,0.39264407]
[1732802331206,0.104317,95862.0,95847.0,0.39264407]
[1732802331448,0.208627,95865.0,95847.0,0.39264407]
[1732802331675,0.104314,95865.0,95847.0,0.39264407]
[1732802331907,0.208626,95865.0,95847.0,0.39264407]
[1732802332132,0.104314,95864.0,95847.0,0.39264407]
[1732802332573,0.104314,95864.0,95847.0,0.26492804]
[1732802332577,0.208626,95866.0,95847.0,0.26492804]
[1732802332808,0.104313,95865.0,95847.0,0.26492804]
[1732802333041,0.0009125,95848.0,95847.0,0.26492804]
[1732802335364,0.0009125,95848.0,95847.0,0.3572288]
[1732802335580,0.0009125,95848.0,95847.0,0.26492804]
[1732802335806,0.0009125,95848.0,95847.0,0.3572288]
[1732802336469,0.0009125,95848.0,95847.0,0.35723077]
[1732802336908,0.0009125,95848.0,95847.0,0.43463077]
[1732802337337,0.0009125,95848.0,95847.0,0.40462364]
[1732802337598,0.0009125,95848.0,95847.0,0.33432829]
[1732802338022,0.0009125,95848.0,95847.0,0.47278802]
[1732802338252,0.0009125,95848.0,95847.0,0.45969587]
[1732802339144,0.0009125,95848.0,95847.0,0.46769587]
[1732802339359,0.0009125,95848.0,95847.0,0.47174238]
[1732802339606,0.0009125,95848.0,95847.0,0.47274238]
[1732802339835,0.0009125,95848.0,95847.0,0.46374238]
[1732802340046,0.0009125,95848.0,95847.0,0.47174238]
[1732802340296,0.0009125,95848.0,95847.0,0.48074238]
[1732802340514,0.0009125,95848.0,95847.0,0.68288433]
[1732802342480,0.0009125,95848.0,95847.0,0.86743669]
[1732802343433,0.0009125,95848.0,95847.0,0.86743636]
[1732802344319,0.0009125,95848.0,95847.0,0.682884]
[1732802345454,0.0009125,95848.0,95847.0,0.91357445]
[1732802346863,0.0009125,95848.0,95847.0,0.60581573]
[1732802348472,0.0009125,95848.0,95847.0,0.79060855]
[1732802348719,0.0009125,95848.0,95847.0,0.39863852]
[1732802348941,0.0009125,95848.0,95847.0,0.04700687]
[1732802348942,0.1052435,95848.0,95847.0,0.04700687]
[1732802349163,0.1282435,95848.0,95847.0,0.04700687]
[1732802349383,0.2053435,95848.0,95847.0,0.0339604]
[1732802349817,0.2053435,95848.0,95847.0,0.0259604]
[1732802350086,0.2514435,95848.0,95847.0,0.0259604]
[1732802350302,0.2514435,95848.0,95847.0,0.01443717]
[1732802350541,0.2514435,95848.0,95847.0,0.02096371]
[1732802350760,0.2514435,95848.0,95847.0,0.02696371]
[1732802351676,0.2514435,95848.0,95847.0,0.02296371]
[1732802351920,0.2514435,95848.0,95847.0,0.02496371]
[1732802352153,0.2514435,95848.0,95847.0,0.0145245]
[1732802352587,0.59206936,95848.0,95847.0,0.0085245]
[1732802352824,0.59206936,95848.0,95847.0,0.006]
[1732802353109,0.50428871,95848.0,95847.0,0.006]
[1732802353772,0.50428871,95848.0,95847.0,0.002]
[1732802354033,0.50428871,95848.0,95847.0,0.004]
[1732802354249,0.5148696,95848.0,95847.0,0.004]
[1732802355416,0.5148696,95848.0,95847.0,0.002]
[1732802356756,0.50428871,95848.0,95847.0,0.003]
[1732802357205,0.3778435,95848.0,95847.0,0.003]
[1732802358167,0.48068871,95848.0,95847.0,0.003]
[1732802358385,0.50368871,95848.0,95847.0,0.003]
[1732802359038,0.50368871,95848.0,95847.0,1e-08]
[1732802361099,0.1282435,95848.0,95847.0,1e-08]
[1732802361316,0.0239125,95848.0,95841.0,0.06883743]
[1732802361536,0.0239125,95848.0,95836.0,0.0017248]
[1732802361537,0.104343,95837.0,95836.0,0.0017248]
[1732802361778,0.104343,95837.0,95836.0,0.00825007]
[1732802363311,0.104343,95837.0,95836.0,0.01525007]
[1732802363531,0.104343,95837.0,95836.0,0.01925007]
[1732802364224,0.104343,95837.0,95836.0,0.0127248]
[1732802364478,0.104343,95837.0,95836.0,0.01925003]
[1732802365164,0.104393,95837.0,95836.0,0.01925003]
[1732802365385,0.127393,95837.0,95836.0,0.01925003]
[1732802366566,0.127393,95837.0,95836.0,0.0127248]
[1732802372309,0.104393,95837.0,95836.0,0.10175009]
[1732802372753,5e-05,95837.0,95836.0,0.10175009]
[1732802372972,0.104393,95837.0,95836.0,0.10175009]
[1732802373188,0.1565682,95837.0,95836.0,0.01925009]
[1732802373642,0.1795682,95837.0,95836.0,0.0127248]
[1732802374086,0.127393,95837.0,95836.0,0.0127248]
[1732802377433,0.51793821,95837.0,95836.0,0.0127248]
[1732802378703,0.51793821,95837.0,95836.0,0.0087248]
[1732802378918,0.51993821,95837.0,95836.0,0.0087248]
[1732802379140,0.51993821,95837.0,95836.0,0.0017248]
[1732802379429,0.52193821,95837.0,95836.0,0.0017248]
[1732802379628,0.62984168,95837.0,95836.0,0.0017248]
[1732802379841,0.62584168,95837.0,95836.0,0.0017248]
[1732802380078,0.62984168,95837.0,95836.0,0.0017248]
[1732802381007,0.62984168,95837.0,95836.0,8e-07]
[1732802381442,0.399556,95825.0,95819.0,0.0017244]
[1732802381447,0.422556,95825.0,95819.0,0.0017244]
[1732802381686,0.52540121,95825.0,95819.0,0.0017244]
[1732802383297,0.53240121,95825.0,95824.0,0.002725]
[1732802384223,0.53640121,95825.0,95824.0,0.002725]
[1732802384444,0.63923267,95825.0,95824.0,0.002725]
[1732802385408,0.344262,95820.0,95819.0,0.0017244]
[1732802385636,0.344262,95820.0,95819.0,4e-07]
[1732802385637,0.44710721,95820.0,95819.0,4e-07]
[1732802385874,0.54993867,95820.0,95819.0,4e-07]
[1732802386093,0.297366,95816.0,95815.0,8e-07]
[1732802386318,0.44711121,95816.0,95815.0,8e-07]
[1732802386773,0.53031121,95816.0,95815.0,8e-07]
[1732802387424,0.53731121,95816.0,95815.0,8e-07]
[1732802387636,0.64014267,95816.0,95815.0,8e-07]
[1732802388734,0.02,95806.0,95805.0,2e-07]
[1732802389033,0.52912221,95806.0,95805.0,2e-07]
[1732802391015,0.53412221,95806.0,95805.0,2e-07]
[1732802391902,0.55511951,95806.0,95805.0,2e-07]
[1732802392126,0.5658077,95806.0,95805.0,2e-07]
[1732802392345,0.4129077,95806.0,95805.0,2e-07]
[1732802392595,0.4029077,95806.0,95805.0,2e-07]
[1732802393053,0.50673916,95806.0,95805.0,2e-07]
[1732802393496,0.52573916,95806.0,95805.0,2e-07]
[1732802393704,0.4269077,95806.0,95805.0,2e-07]
[1732802393937,0.3909104,95806.0,95805.0,2e-07]
[1732802394205,0.21222221,95806.0,95805.0,2e-07]
[1732802394410,0.21722221,95806.0,95805.0,2e-07]
[1732802394861,0.21222221,95806.0,95805.0,2e-07]
[1732802395076,0.21422221,95806.0,95805.0,2e-07]
[1732802395554,0.23022221,95806.0,95805.0,2e-07]
[1732802395996,0.23522221,95806.0,95805.0,2e-07]
[1732802396210,0.23022221,95806.0,95805.0,2e-07]
[1732802396480,0.104377,95806.0,95805.0,2e-07]
[1732802398667,0.104377,95806.0,95805.0,0.0030002]
[1732802399126,0.104377,95806.0,95805.0,0.0070002]
[1732802399363,0.104377,95806.0,95805.0,0.0030002]
[1732802400241,0.1565635,95806.0,95805.0,0.0030002]
[1732802400464,0.23022221,95806.0,95805.0,0.0070002]
[1732802401136,0.104376,95808.0,95805.0,0.0070002]
[1732802401395,0.06600869,95838.0,95806.0,0.0758]
[1732802401652,0.0108624,95841.0,95815.0,0.104367]
[1732802401653,0.208706,95829.0,95815.0,0.104367]
[1732802401889,0.10436,95822.0,95815.0,0.180367]
[1732802402119,0.104361,95821.0,95815.0,0.180367]
[1732802402338,0.208714,95825.0,95815.0,0.180367]
[1732802402573,0.208714,95825.0,95815.0,0.076]
[1732802402574,0.208713,95825.0,95815.0,0.076]
[1732802402819,0.1052286,95816.0,95815.0,0.076]
[1732802403047,0.1052286,95816.0,95815.0,0.083]
[1732802403048,0.1292286,95816.0,95815.0,0.083]
[1732802403415,0.28674127,95816.0,95815.0,0.007]
[1732802403651,0.1292286,95816.0,95815.0,0.007]
[1732802404578,0.0018626,95816.0,95815.0,0.193567]
[1732802404839,0.0018626,95816.0,95815.0,0.197567]
[1732802405713,0.0018626,95816.0,95815.0,0.30041221]
[1732802406903,0.0008626,95816.0,95815.0,0.29341221]
[1732802407143,0.0008626,95816.0,95815.0,0.28941221]
[1732802407375,0.0018626,95816.0,95815.0,0.30541221]
[1732802407558,0.0018626,95816.0,95815.0,0.193567]
[1732802407559,0.0008626,95816.0,95815.0,0.193567]
[1732802407801,0.0008626,95816.0,95815.0,0.186567]
[1732802408235,0.0008626,95816.0,95815.0,0.192567]
[1732802408935,0.0008626,95816.0,95815.0,0.19104521]
[1732802409156,0.0008626,95816.0,95815.0,0.3539594]
[1732802409157,0.0018626,95816.0,95815.0,0.3539594]
[1732802409402,0.0018626,95816.0,95815.0,0.35211221]
[1732802411620,0.0018626,95816.0,95815.0,0.24774521]
[1732802411829,0.1062286,95816.0,95815.0,0.0972]
[1732802412050,0.0018626,95816.0,95815.0,0.0972]
[1732802413868,0.1062286,95816.0,95815.0,0.0972]
[1732802414787,0.1062286,95816.0,95815.0,0.015]
[1732802415055,0.18044225,95816.0,95815.0,0.015]
[1732802415274,0.23207381,95816.0,95815.0,0.015]
[1732802415969,0.25052012,95816.0,95815.0,0.006]
[1732802416224,0.41152012,95816.0,95815.0,0.013]
[1732802416450,0.41152012,95816.0,95805.0,2e-07]
[1732802416451,0.01,95806.0,95805.0,2e-07]
[1732802416673,0.01,95778.0,95757.0,0.09235476]
[1732802416916,0.104409,95777.0,95758.0,0.10469331]
[1732802417135,0.01,95776.0,95758.0,0.10469331]
[1732802417386,0.01,95776.0,95761.0,0.208853]
[1732802417672,0.01,95788.0,95762.0,0.10469329]
[1732802417881,0.001,95778.0,95770.0,0.15101471]
[1732802418106,0.001,95778.0,95771.0,0.10284521]
[1732802418333,0.001,95778.0,95773.0,0.208827]
[1732802418572,0.01,95783.0,95773.0,0.10284521]
[1732802419073,0.01,95785.0,95761.0,0.004]
[1732802419074,0.104414,95773.0,95761.0,0.108425]
[1732802419292,0.01,95775.0,95762.0,0.10284521]
[1732802419530,0.01,95775.0,95761.0,0.004]
[1732802419531,0.01,95771.0,95761.0,0.004]
[1732802419771,0.114422,95765.0,95762.0,0.0796]
[1732802420033,0.104424,95763.0,95762.0,0.0796]
[1732802420267,0.01,95763.0,95758.0,0.01086107]
[1732802420708,0.01,95763.0,95756.0,0.104432]
[1732802420953,0.01,95763.0,95753.0,0.0811]
[1732802421455,0.01,95763.0,95762.0,0.003]
[1732802421893,0.01,95763.0,95753.0,0.0811]
[1732802422157,0.01,95763.0,95761.0,0.006]
[1732802422392,0.01,95768.0,95755.0,0.00184842]
[1732802422603,0.01,95774.0,95763.0,0.0812]
[1732802422822,0.01,95774.0,95766.0,0.10442]
[1732802423279,0.01,95774.0,95764.0,0.10284521]
[1732802423491,0.02,95768.0,95763.0,0.0812]
[1732802423729,0.10442,95767.0,95763.0,0.0812]
[1732802423973,0.02,95768.0,95763.0,0.0812]
[1732802424180,0.02,95768.0,95766.0,0.003]
[1732802425517,0.02,95768.0,95763.0,0.0812]
[1732802425760,0.02,95768.0,95763.0,0.0872]
[1732802425978,0.02,95768.0,95766.0,0.003]
[1732802426412,0.02,95768.0,95766.0,0.009]
[1732802427069,0.02,95768.0,95766.0,0.003]
[1732802428081,0.208808,95782.0,95767.0,0.10284521]
[1732802428082,0.01,95782.0,95767.0,0.10284521]
[1732802428291,0.208791,95790.0,95776.0,0.10441]
[1732802428292,0.01,95783.0,95776.0,0.10441]
[1732802428951,0.01,95783.0,95773.0,0.208825]
[1732802429180,0.01,95783.0,95774.0,0.104412]
[1732802429427,0.104408,95778.0,95768.0,0.0816]
[1732802429673,0.20882,95776.0,95768.0,0.0816]
[1732802429904,0.114417,95769.0,95768.0,0.0816]
[1732802430365,0.01,95769.0,95768.0,0.0816]
[1732802430599,0.01,95776.0,95768.0,0.0816]
[1732802430849,0.01,95780.0,95768.0,0.0876]
[1732802431107,0.0108634,95784.0,95773.0,0.104412]
[1732802431108,0.01,95783.0,95773.0,0.104412]
[1732802431324,0.01,95783.0,95773.0,0.10284521]
[1732802431536,0.01,95783.0,95781.0,0.104403]
[1732802431749,0.01,95783.0,95775.0,0.208822]
[1732802431969,0.01,95783.0,95778.0,0.104407]
[1732802432206,0.01,95783.0,95775.0,0.208822]
[1732802432677,0.01,95783.0,95773.0,0.10484521]
[1732802432896,0.01,95783.0,95776.0,0.10441]
[1732802433164,0.01,95783.0,95774.0,0.208824]
[1732802433374,0.01,95783.0,95779.0,0.104406]
[1732802433596,0.0008634,95784.0,95783.0,0.185502]
[1732802433814,0.0008634,95784.0,95783.0,0.44019481]
[1732802434076,0.0008634,95784.0,95783.0,0.48594721]
[1732802435225,0.0008634,95784.0,95783.0,0.49694721]
[1732802435670,0.0008634,95784.0,95783.0,0.49494721]
[1732802436346,0.0008634,95784.0,95783.0,0.48594721]
[1732802436600,0.0008634,95784.0,95783.0,0.49394721]
[1732802436818,0.0008634,95784.0,95783.0,0.50294721]
[1732802438495,0.0008634,95784.0,95783.0,0.51376343]
[1732802443361,0.0008634,95784.0,95783.0,0.5347212]
[1732802446786,0.0008634,95784.0,95783.0,0.51376343]
[1732802449307,0.0008634,95784.0,95783.0,0.46616343]
[1732802454297,0.0008634,95784.0,95783.0,0.02781622]
[1732802454520,0.0008634,95784.0,95783.0,0.017]
[1732802454521,0.14317034,95784.0,95783.0,0.017]
[1732802455014,0.1152644,95784.0,95783.0,0.017]
[1732802455228,0.1152644,95784.0,95783.0,0.009]
[1732802455471,0.1152644,95784.0,95783.0,0.002]
[1732802455908,0.1152644,95784.0,95783.0,0.008]
[1732802456401,0.2240644,95784.0,95783.0,0.008]
[1732802456851,0.2718644,95784.0,95783.0,0.006]
[1732802457322,0.2718644,95784.0,95783.0,0.009]
[1732802457747,0.2718644,95784.0,95769.0,0.01072922]
[1732802457748,0.1674634,95784.0,95769.0,0.01072922]
[1732802457974,0.104416,95770.0,95769.0,0.01072922]
[1732802458230,0.104422,95765.0,95757.0,0.10443]
[1732802458432,0.01,95762.0,95756.0,0.01045996]
[1732802458896,0.01,95762.0,95751.0,0.208875]
[1732802459135,0.01,95762.0,95741.0,0.208895]
[1732802459136,0.01,95758.0,95746.0,0.208885]
[1732802459387,0.104431,95757.0,95749.0,0.104439]
[1732802459607,0.098431,95757.0,95750.0,0.10284521]
[1732802459837,0.01,95758.0,95750.0,0.10284521]
[1732802460059,0.104431,95757.0,95750.0,0.10284521]
[1732802460277,0.01,95758.0,95750.0,0.10284521]
[1732802460499,0.01,95758.0,95757.0,0.104431]
[1732802460928,0.01,95757.0,95750.0,0.10284521]
[1732802461398,0.01,95755.0,95750.0,0.014]
[1732802461637,0.104435,95754.0,95750.0,0.005]
[1732802461849,0.01,95755.0,95749.0,0.01080585]
[1732802462337,0.01,95755.0,95748.0,0.15]
[1732802462554,0.01,95755.0,95733.0,0.15]
[1732802462787,0.01,95755.0,95749.0,0.104438]
[1732802463035,0.01,95755.0,95747.0,0.15]
[1732802463292,0.01,95755.0,95747.0,0.25284521]
[1732802463503,0.01,95755.0,95752.0,0.104435]
[1732802463741,0.01,95755.0,95749.0,0.208879]
[1732802463966,0.01,95755.0,95752.0,0.104436]
[1732802464187,0.01,95755.0,95750.0,0.009]
[1732802464401,0.01,95755.0,95751.0,0.11096681]
[1732802464642,0.01,95755.0,95752.0,0.00652981]
[1732802464846,0.01,95755.0,95753.0,0.00652981]
[1732802465049,0.01,95755.0,95754.0,0.00652981]
[1732802465281,0.01,95755.0,95753.0,0.00652981]
[1732802465487,0.104435,95753.0,95752.0,0.009]
[1732802465709,0.104435,95753.0,95752.0,0.01552986]
[1732802465710,0.114435,95753.0,95752.0,0.01552986]
[1732802466177,0.01,95753.0,95752.0,0.01552986]
[1732802466647,0.01,95753.0,95752.0,0.00652986]
[1732802466867,0.114435,95753.0,95752.0,0.00652986]
[1732802467286,0.114435,95753.0,95752.0,0.0172681]
[1732802467707,0.114435,95753.0,95752.0,0.02326815]
[1732802468155,0.01,95753.0,95752.0,0.02326815]
[1732802468375,0.114435,95753.0,95752.0,0.03226815]
[1732802469016,0.01,95753.0,95752.0,0.03226815]
[1732802470176,0.01,95753.0,95752.0,0.13670415]
[1732802470407,0.01,95753.0,95752.0,0.03226815]
[1732802471100,0.01,95753.0,95752.0,0.13670415]
[1732802471764,0.01,95753.0,95752.0,0.14715154]
[1732802472234,0.01,95753.0,95752.0,0.04271554]
[1732802472432,0.01,95753.0,95752.0,0.14715154]
[1732802473684,0.0008628,95758.0,95757.0,0.104431]
[1732802473929,0.0008634,95784.0,95757.0,0.104431]
[1732802473930,0.0008634,95784.0,95758.0,0.15]
[1732802474151,0.0008634,95784.0,95783.0,0.104402]
[1732802474404,0.0008634,95784.0,95783.0,0.11093191]
[1732802474628,0.0008634,95784.0,95783.0,0.22422126]
[1732802476629,0.0008634,95784.0,95783.0,0.25104035]
[1732802477120,0.0008634,95784.0,95783.0,0.23504035]
[1732802477337,0.0008634,95784.0,95783.0,0.24404035]
[1732802477582,0.0008634,95784.0,95783.0,0.40004035]
[1732802477797,0.0008634,95784.0,95783.0,0.14563499]
[1732802478021,0.0008634,95784.0,95783.0,0.02297069]
[1732802478241,0.1252644,95784.0,95783.0,0.01697069]
[1732802478479,0.1482644,95784.0,95783.0,0.02597069]
[1732802478747,0.1482644,95784.0,95783.0,0.01552719]
[1732802479397,0.1482644,95784.0,95783.0,0.009]
[1732802479623,0.1252644,95784.0,95783.0,0.01552814]
[1732802479836,0.1252644,95784.0,95783.0,0.02252814]
[1732802480054,0.1482644,95784.0,95783.0,0.02252814]
[1732802480279,0.1482644,95784.0,95783.0,0.009]
[1732802480490,0.25110961,95784.0,95783.0,0.009]
[1732802480713,0.25110961,95784.0,95752.0,0.15]
[1732802480714,0.01,95756.0,95752.0,0.15]
[1732802480950,0.208839,95768.0,95742.0,0.208893]
[1732802480951,0.01,95752.0,95742.0,0.208893]
[1732802481172,0.01,95752.0,95751.0,0.00652889]
[1732802481403,0.01,95752.0,95751.0,0.01697512]
[1732802482084,0.01,95752.0,95751.0,0.12141212]
[1732802482566,0.01,95752.0,95751.0,0.01697512]
[1732802483551,0.01,95752.0,95751.0,0.00652889]
[1732802483758,0.01,95760.0,95751.0,0.01697512]
[1732802484021,0.01,95762.0,95758.0,0.0017256]
[1732802484238,0.01,95762.0,95761.0,0.104426]
[1732802484451,0.01,95762.0,95761.0,0.12140112]
[1732802484888,0.01,95762.0,95761.0,0.01697512]
[1732802485801,0.01,95762.0,95761.0,0.13040112]
[1732802487139,0.01,95762.0,95761.0,0.13340112]
[1732802487629,0.01,95762.0,95761.0,0.13340153]
[1732802489625,0.01,95762.0,95761.0,0.14382084]
[1732802489626,0.004,95762.0,95761.0,0.14382084]
[1732802489849,0.004,95772.0,95771.0,0.104415]
[1732802490070,0.004,95781.0,95771.0,0.01697553]
[1732802490294,0.0148634,95784.0,95783.0,0.104402]
[1732802490535,0.0148634,95784.0,95783.0,0.01697553]
[1732802490763,0.0148634,95784.0,95783.0,0.00652905]
[1732802490984,0.0148634,95784.0,95783.0,0.01697553]
[1732802491499,0.0148634,95784.0,95783.0,0.00652905]
[1732802492652,0.0148634,95784.0,95783.0,0.01352905]
[1732802492889,0.0148634,95784.0,95783.0,0.02397553]
[1732802493141,0.0148634,95784.0,95783.0,0.02597553]
[1732802493609,0.0148634,95784.0,95783.0,0.01352905]
[1732802494036,0.0148634,95784.0,95783.0,0.01652905]
[1732802494272,0.0148634,95784.0,95783.0,0.02697415]
[1732802494721,0.0148634,95784.0,95783.0,0.01652905]
[1732802496577,0.0148634,95784.0,95783.0,0.01]
[1732802499249,0.0048634,95784.0,95783.0,0.01]
[1732802499251,0.0048634,95784.0,95783.0,0.21724721]
[1732802499252,0.0008634,95784.0,95783.0,0.21724721]
[1732802499462,0.004,95791.0,95790.0,0.104395]
[1732802499699,0.01,95795.0,95790.0,0.00652789]
[1732802499913,0.01,95795.0,95794.0,0.10439]
[1732802500138,0.01,95795.0,95794.0,0.00652789]
[1732802500376,0.014,95795.0,95794.0,0.11091789]
[1732802500605,0.014,95795.0,95794.0,0.10439]
[1732802500824,0.004,95795.0,95794.0,0.10439]
[1732802501795,0.004,95807.0,95794.0,0.10937222]
[1732802502029,0.0008626,95816.0,95810.0,0.104373]
[1732802502030,0.004,95811.0,95810.0,0.104373]
[1732802502248,0.004,95811.0,95810.0,0.11090001]
[1732802503159,0.108372,95811.0,95810.0,0.00652701]
[1732802503375,0.108372,95811.0,95780.0,0.15101471]
[1732802503376,0.004,95792.0,95786.0,0.208798]
[1732802503588,0.004,95792.0,95791.0,0.1053831]
[1732802503812,0.004,95792.0,95791.0,0.11092044]
[1732802504021,0.004,95792.0,95791.0,0.00652744]
[1732802504288,0.004,95792.0,95791.0,0.104393]
[1732802504498,0.004,95792.0,95791.0,0.11092044]
[1732802504727,0.004,95792.0,95791.0,0.104393]
[1732802504987,0.21918612,95826.0,95784.0,0.04664835]
[1732802504988,0.014,95785.0,95784.0,0.04664835]
[1732802505440,0.1184,95785.0,95784.0,0.04664835]
[1732802505686,0.1184,95785.0,95784.0,0.05317656]
[1732802506777,0.1184,95785.0,95784.0,0.05817656]
[1732802506996,0.014,95785.0,95784.0,0.05817656]
[1732802507422,0.014,95785.0,95784.0,0.05164835]
[1732802507423,0.1184,95785.0,95784.0,0.05164835]
[1732802507657,0.1184,95785.0,95784.0,0.05817658]
[1732802508126,0.1184,95785.0,95784.0,0.05320884]
[1732802508794,0.1192627,95785.0,95784.0,0.05320884]
[1732802509516,0.1192627,95785.0,95784.0,0.05520884]
[1732802509744,0.1192627,95785.0,95784.0,0.04868061]
[1732802513596,0.1192627,95785.0,95784.0,0.04868061]
[1732802513821,0.1192627,95785.0,95784.0,0.05520886]
[1732802514303,0.1422627,95785.0,95784.0,0.04868061]
[1732802515231,0.1422627,95785.0,95784.0,0.04368061]
[1732802515696,0.1422627,95785.0,95784.0,0.04168061]
[1732802518851,0.1918627,95785.0,95784.0,0.04168061]
[1732802519985,0.1918627,95785.0,95784.0,0.04340581]